Cogmind - Beta 12 @@@ ROGUE MODE // 2023.11.23 @ 17:18:02 Player: morimori Result: Destroyed by G-47 Trooper with Particle Gun Performance ------------- Evolutions (0) 0 Regions Visited (1) 200 Robots Destroyed (17) 85 Value Destroyed (264) 264 Prototype IDs (0) 0 Alien Tech Used (0) 0 Bonus (0) 0 TOTAL SCORE: 549 Bonus ------- None Cogmind --------- Core Integrity 0/250 Matter 295/300 Energy 122/125 System Corruption 0% Temperature Warm (115) Movement Core (250) Ox4 Location -10/Materials Parts ------- > --- POWER (1) -------- Light Ion Engine > --- PROPULSION (2) --- (None) > --- UTILITY (2) ------ Heat Sink Small Storage Unit > --- WEAPON (2) ------- Small Laser Beam Rifle > --- INVENTORY (8) ---- Light Ion Engine Light Ion Engine Improved Terrain Scanner Seismic Detector Hacking Suite Peak State ------------ > --- POWER ------------ Ion Engine > --- PROPULSION ------- Wheel Compact Wheel > --- UTILITY ---------- Small Storage Unit Improved Terrain Scanner > --- WEAPON ----------- Beam Rifle Beam Rifle > --- INVENTORY -------- Light Ion Engine Light Ion Engine Light Ion Engine Compact Wheel Improved Terrain Scanner Seismic Detector Hacking Suite [Rating: 12] Favorites ----------- Power Ion Engine Engine Ion Engine Propulsion Compact Wheel Wheel Compact Wheel Utility Small Storage Unit Device Improved Terrain Scanner Storage Small Storage Unit Processor Targeting Computer Weapon Beam Rifle Energy Gun Beam Rifle Ballistic Gun Light Assault Rifle Build | -11 -10 ------- Run | Jun Mat Slots Evolved . | . . Power . | . . Propulsion . | . . Utility . | . . Weapon . | . . Parts Attached 15 | 7 8 Power 2 | 1 1 Engine 2 | 1 1 Core . | . . Reactor . | . . Propulsion 4 | 2 2 Treads . | . . Leg . | . . Wheel 4 | 2 2 Hover . | . . Flight . | . . Utility 4 | 2 2 Device 2 | 1 1 Storage 1 | 1 . Processor 1 | . 1 Hackware . | . . Protection . | . . Artifact . | . . Weapon 5 | 2 3 Energy Gun 4 | 1 3 Energy Cannon . | . . Ballistic Gun 1 | 1 . Ballistic Cannon . | . . Launcher . | . . Special Weapon . | . . Impact Weapon . | . . Slashing Weapon . | . . Piercing Weapon . | . . Special Melee Weapon . | . . Unidentified Prototypes . | . . Parts Lost 8 | . 8 Power 1 | . 1 Propulsion 4 | . 4 Utility 1 | . 1 Weapon 2 | . 2 Highest Loss Streak 6 | . 6 To Critical Strikes . | . . Average Slot Usage (%) 86 | . 86 Engine 11 | . 11 Wheel 20 | . 20 Device 11 | . 11 Storage 14 | . 14 Processor 1 | . 1 Energy Gun 19 | . 19 Ballistic Gun 7 | . 7 Naked Turns . | . . Heaviest Build 15 | 13 15 Greatest Support 26 | 26 26 Greatest Overweight (x) . | . . Average Overweight (x) . | . . Largest Inventory Capacity 8 | 8 8 Average Capacity 7 | 7 8 Most Carried 8 | 8 8 Average Carried 5 | 4 7 Final Capacity 8 | 8 8 Final Carried 8 | 8 5 Class Distribution -------------------- 100% | Mutant Dominant Class ---------------- Mutant | -10/Materials Resources | -11 -10 ----------- Run | Jun Mat Matter Collected 419 | 287 132 Remotely . | . . Salvage Created 531 | 167 364 Parts 34 | 12 22 Haulers Intercepted . | . . Recyclers Shooed . | . . Parts Field Recycled . | . . Retrieved Matter . | . . Parts Self-Destructed . | . . Prevented . | . . Kills | -11 -10 ------- Run | Jun Mat Combat Hostiles Destroyed 10 | . 10 Guns 10 | . 10 Classes Destroyed 6 | 3 3 Worker 2 | 2 . Tunneler 2 | 2 . Recycler 2 | 1 1 Operator 1 | . 1 Swarmer 5 | . 5 Grunt 5 | . 5 Best Kill Streak 6 | 4 6 Combat Bots Only 6 | . 6 Max Kills in Single Turn 1 | 1 1 Gunslinging . | . . Exploded . | . . Melee . | . . Uniques/NPCs Destroyed . | . . Combat | -11 -10 -------- Run | Jun Mat Damage Taken 794 | . 794 Core 261 | . 261 Absorbed by Shields . | . . Core Remaining (%) 100 | 100 . Volleys Fired 61 | 17 44 Largest 2 | 2 2 Hottest 112 | 60 112 Shots Fired 114 | 33 81 Gun 114 | 33 81 Cannon . | . . Launcher . | . . Special . | . . Kinetic 36 | 17 19 Thermal 78 | 16 62 Explosive . | . . Electromagnetic . | . . Robot Hit Streak 9 | 9 5 Robot Miss Streak 4 | 2 4 Penetration Max . | . . Secondary Targets 1 | . 1 Max Gunslinging Chain 1 | . 1 Shots Hit Robots 70 | 22 48 Core Hits 29 | 9 20 Critical Kills . | . . Critical Parts Destroyed . | . . Critical Strikes 4 | . 4 Burn 4 | . 4 Melee Attacks . | . . Impact . | . . Slashing . | . . Piercing . | . . Sneak Attacks . | . . Combat Hostiles . | . . Follow-up Attacks . | . . Damage Inflicted 820 | 215 605 Guns 820 | 215 605 Cannons . | . . Explosions . | . . Melee . | . . Ramming . | . . Kinetic 231 | 104 127 Thermal 589 | 111 478 Explosive . | . . Electromagnetic . | . . Impact . | . . Slashing . | . . Piercing . | . . Highest Corruption . | . . Average Corruption . | . . Corruption Purged . | . . Corruption Blocked . | . . Overload Shots . | . . Overflow Damage . | . . Projectiles . | . . Explosions . | . . Melee . | . . Knockbacks . | . . Impact . | . . Kinetic . | . . Secondary . | . . Self-Inflicted Damage . | . . Shots . | . . Rammed . | . . Targets Rammed . | . . Kicked . | . . Crushed . | . . Highest Temperature 414 | 40 414 Average Temperature 140 | 22 167 Received Heat Transfer 309 | . 309 Effects 6 | . 6 Shutdowns 1 | . 1 Energy Bleed 2 | . 2 Matter Decay 1 | . 1 Damage (major) 2 | . 2 Siege Activations . | . . Robots Corrupted . | . . Combat Hostiles . | . . Parts Fried . | . . Impact Corruptions . | . . Robots Melted . | . . Combat Hostiles . | . . Parts Melted 5 | . 5 Heat Transferred 1744 | 250 1494 Parts Sabotaged . | . . Parts Stolen . | . . Parts Stripped . | . . Power Chain Reactions . | . . Missiles Intercepted . | . . Alert | -11 -10 ------- Run | Jun Mat Peak Influence 222 | 25 222 Initial 16 | . 16 Average 72 | 8 115 Maximum Alert Level 1 | . 1 Low Security (%) 90 | 100 83 Level 1 9 | . 16 Level 2 . | . . Level 3 . | . . Level 4 . | . . Level 5 . | . . High Security . | . . Max Security . | . . Squads Dispatched 1 | . 1 Investigation . | . . Extermination . | . . Reinforcement 1 | . 1 Assault . | . . Garrison . | . . Intercept . | . . Searches Triggered . | . . Construction Impeded . | . . Haulers Reinforced . | . . Active Scanning Responses . | . . Cargo Convoy Interrupts . | . . Stealth | -11 -10 --------- Run | Jun Mat Distress Signals 5 | . 5 Communications Jammed . | . . Distress Signals . | . . Times Spotted 17 | . 17 Peak Tracking Total 8 | . 8 Tactical Retreats 2 | . 2 Traps | -11 -10 ------- Run | Jun Mat Traps Triggered . | . . Indirectly . | . . Trap Hack Attempts . | . . Triggered . | . . Disarmed . | . . Reprogrammed . | . . Reused . | . . Traps Extracted . | . . Installed . | . . Triggered . | . . Machines | -11 -10 ---------- Run | Jun Mat Machines Disabled 1 | . 1 Max in Single Turn 1 | . 1 Machines Repaired . | . . Machines Sabotaged . | . . Overloaded Fab Kills . | . . Hacking | -11 -10 --------- Run | Jun Mat Machines Accessed . | . . Terminals . | . . Fabricators . | . . Repair Stations . | . . Recycling Units . | . . Scanalyzers . | . . Garrison Access . | . . Total Hacks . | . . Successful . | . . Failed . | . . Catastrophic . | . . Database Lockouts . | . . Manual . | . . Terminals . | . . Fabricators . | . . Repair Stations . | . . Recycling Units . | . . Scanalyzers . | . . Garrison Access . | . . Terminal Hacks . | . . Fabricator Hacks . | . . Repair Station Hacks . | . . Recycling Unit Hacks . | . . Scanalyzer . | . . Garrison Access Hacks . | . . Unauthorized Hacks . | . . Terminals . | . . Fabricators . | . . Repair Stations . | . . Recycling Units . | . . Scanalyzers . | . . Garrison Access . | . . Data Cores Recovered . | . . Used . | . . Hacking Detections . | . . Full Trace Events . | . . Feedback Events . | . . Feedback Blocked . | . . Robot Schematics Acquired . | . . Robots Built . | . . Authchips . | . . Time . | . . Total Robot Build Rating . | . . Part Schematics Acquired . | . . Parts Built . | . . Authchips . | . . Time . | . . Total Part Build Rating . | . . Parts Repaired . | . . Time . | . . Parts Recycled . | . . Recycled Matter . | . . Retrieved Matter . | . . Retrieved Components . | . . Parts Scanalyzed . | . . Part Schematics Acquired . | . . Parts Damaged . | . . Bothacking | -11 -10 ------------ Run | Jun Mat Used RIF Installer . | . . Robots Hacked . | . . Non-combat . | . . Combat . | . . Robot Hacks Applied . | . . Relay Couplers Released . | . . Fabnet Peak Effective % . | . . Robots Rewired . | . . Allies Hacked . | . . Hacks Repelled . | . . Allies | -11 -10 -------- Run | Jun Mat Total Allies . | . . Largest Group . | . . Highest-Rated Group . | . . Highest-Rated Ally . | . . Total Orders . | . . Ally Attacks . | . . Total Damage . | . . Kills . | . . Allies Corrupted . | . . Allies Melted . | . . Intel | -11 -10 ------- Run | Jun Mat Robot Analysis Total . | . . Derelict Logs Recovered . | . . Drone Launches . | . . Drone Recoveries . | . . Exploration | -11 -10 ------------- Run | Jun Mat Turns Passed 418 | 170 248 Spaces Moved 200 | 101 99 Core 1 | 1 . Treads . | . . Legs . | . . Wheels 199 | 100 99 Hover . | . . Flight . | . . Fastest Speed 50 | 50 90 Average Speed 92 | 92 92 Slowest Speed 100 | 100 100 Overloaded Moves . | . . Propulsion Burnouts . | . . Robots Hopped . | . . Cave-ins Triggered . | . . Exploration Rate (%) 17 | 6 28 Regions Visited 1 Branch Regions . Pre-discovered Areas . | . . Known Exits Taken . | . . Unknown Exits Taken 1 | 1 . Scrap Searched . | . . Spaces Dug . | . . Terrain Destroyed . | . . Melee . | . . Projectile . | . . AOE . | . . Terrain Rammed . | . . Walls Destroyed . | . . Machines Disabled . | . . Actions | -11 -10 --------- Run | Jun Mat Total 324 | 146 178 Wait 32 | 10 22 Move 199 | 100 99 Hop . | . . Pick Up 14 | 11 3 Fast Attach 7 | 5 2 Attach 6 | 2 4 Detach . | . . Swap 2 | . 2 Drop 3 | 1 2 Fire 61 | 17 44 Melee . | . . Ram . | . . Kick . | . . Crush . | . . Escape Stasis . | . . Rewire . | . . Trap . | . . Miscellaneous . | . . Route ------- -11/Junkyard -10/Materials (discovered 1 exit: [*Min]) History --------- Turn | Location | Event 27 | -11/Junkyard | Discovered new exit (range 14) 171 | -11/Junkyard | Entered Materials 233 | -10/Materials | Discovered new exit (range 10) 313 | -10/Materials | Core integrity fell below 50% 325 | -10/Materials | Build established: Mutant 353 | -10/Materials | Core integrity fell below 20% 381 | -10/Materials | Lost 6 parts (1p2n1u2w) 419 | -10/Materials | Destroyed by G-47 Trooper with Particle Gun Last Messages --------------- 00370_ R-06 Scavenger inserts Tractor Beam into recycling unit. 00371_ Recycling unit begins recycling process. 00373_ R-06 Scavenger inserts Lgt. Assault Rifle into recycling unit. 00375_ Acquired 41 matter. 00376_ Acquired 1 matter. 00378_ W-16 Scout sends out distress signal. 00378_ R-06 Scavenger collects Flight Unit. 00379_ W-16 Scout sends out distress signal. 00379_ Acquired Heat Sink. 00380_ Discarded Targeting Computer. 00382_ Acquired 10 matter. 00383_ R-06 Scavenger collects Aluminum Leg. 00386_ R-06 Scavenger inserts Aluminum Leg into recycling unit. 00405_ G-34 Mercenary destroyed. 00407_ R-06 Scavenger collects Heat Sink. 00414_ K-01 Serf collects debris. 00414_ R-06 Scavenger collects Sml. Laser. 00417_ Com. Wheel destroyed. 00417_ K-01 Serf collects debris. 00418_ R-06 Scavenger collects Aluminum Leg. Map ----- +----------------------------------------------------+ | ????????????????????# #????? | | ????????????????????# % T #????? | | ???????????????? [ #????? | | ?????????????????###########+####### #??#?? | | ???????????????????????????????????## ##????? | | ????????????????????????????????????# #?????? | | ????????????????????????????????????# #?????? | | ????????????????????????????????????# #???#?? | | ?????????????????????????????????#### ##????? | | ?????????????????????????????#???#""" #????? | | ?????????????????????????????????#" #????? | | ?????????????????????????????????#"| #???? | | ??????????????????? ?????????????#"" < #????? | | ????????????????????????????#????#"! #????? | | ?????????????????????????????????#" #????# | | ??????????"??????"?????#?????????#"" #????? | | ?????????? ?????????????#????#???#### ##???#? | | ???????????? ???????????????????????# #??#??? | | ???????????????#########??????#?????# #??###? | | ???????????????# #???????????##%% #? [[#? | | ?????????#?????# #??????####### ## [[#? | | ???????????????# #?###### //## | | ???????????????# """ ###"T"## //#? | | ????????????#??# """ #r //#? | | ???????????????# """rgk ! //#? | | ???????????????# @#% """ """ % #####? | | ??????????#????# # """ """ = #????? | | ???????????????# # """ """ #????? | | ????????????#??# "Y" # #????? | | ??????????????## """ # ? | | ???????????????######### """ """ ####??? | | ????????????????????#??# """ """ T#????? | | ???????????????? ??????# """ """ ##?#??? | | ???????????????????????+ #?????? | | ???????????????????????# #?????? | | ????????????"?????? ???# """ """ #?????? | | ????????????"??????????# """ """ #???? ? | | ??????????????????????? """ """ #?????? | | ????????????? ???????? ? ? ?????? | | ?????????????????#???? ! ?? ?????? | | ?????????????????????? ?? ? ??????? | | ????????????????????? ?? ????????????? | | ????????????????????????#+##???####???????????? | | ??????????????????????????????????????????????? | | ??????????????????????????????????????????????? | | ??????????????????????????????????????????????? | | ??????????????????????????????????????????????? | | ??????????????????????????????????????????????? | | ??????????????????????????????????????????????? | | ??????????????????????????????????????????????? | +----------------------------------------------------+ Best States ------------- Heat Dissipation 35 Energy Generation 10 Energy Capacity 250 Matter Stores 300 Matter Capacity 300 Sight Range 16 Terrain Scan Range 16 Terrain Scan Density 10 Evasion (%) 42 Targeting Accuracy 5 Item Schematics ----------------- None Robot Schematics ------------------ None Fabricated ------------ Nothing Alien Tech Used ----------------- None Achievements -------------- None Challenges ------------ None Game ------ Seed AdvancedReinforcedArray Manual? 0 Play Time 00:08:16 Cumulative 93.7 hours Start 2023.11.23 @ 17:12:46 End 2023.11.23 @ 17:18:02 Sessions 1 Manual Loads 0 Difficulty Rogue Special Mode None Game No. 61 Rogue 61 Adventurer 0 Explorer 0 Win Type - Total 0 Types 0/0/0/0/0/0/0/0/0 Lore% 38 Gallery% 41 Achievement% 35 Wizard Run 0 Options --------- ASCII 0 Keyboard 1 Movement Vi Keybinds 0 Fullscreen 2 Font 18/SmallcapsGlow Map View 76x50 Tactical HUD 1 Map Filters NONE Filters NONE Steam 1 RUN: 97bfb41d-401c-411a-9948-93c535f6ff8a